Cogmind - Beta 17.1 @@@ ROGUE MODE // 2026.09.09 @ 14:44:05 Player: Firely Result: Destroyed by DK-OLD(R) with Subdweller Laser Performance ------------- Evolutions (0) 0 Regions Visited (3) 600 Robots Destroyed (40) 200 Value Destroyed (898) 898 Prototype IDs (0) 0 Alien Tech Used (0) 0 Bonus (0) 0 TOTAL SCORE: 1698 Bonus ------- None Cogmind --------- Core Integrity 0/250 Matter 296/300 Energy 200/200 System Corruption 0% Temperature Cool (6) Movement Walking (190) Ox1 Location -10/Subcaves Parts ------- > --- POWER (1) -------- Subdweller Power Source > --- PROPULSION (2) --- Aluminum Leg Aluminum Leg > --- UTILITY (2) ------ Large Storage Unit Signal Interpreter > --- WEAPON (2) ------- Subdweller Laser Subdweller Machine Gun > --- INVENTORY (15) --- Light Ion Engine Flight Unit Flight Unit Flight Unit Small Storage Unit Subdweller Optics Experimental Sensor Array Hacking Suite Makeshift System Shield Subdweller Laser Subdweller Laser Subdweller Laser Light Assault Rifle Light Cannon Dirty Datajack (20) Peak State ------------ > --- POWER ------------ Makeshift Power Source > --- PROPULSION ------- Light Treads Spiked Treads > --- UTILITY ---------- Large Storage Unit Signal Interpreter > --- WEAPON ----------- Light Cannon Battle Cannon > --- INVENTORY -------- Light Ion Engine Subdweller Power Source Light Treads Aluminum Leg Aluminum Leg Flight Unit Flight Unit Flight Unit Small Storage Unit Subdweller Optics Experimental Sensor Array Hacking Suite Makeshift System Shield Subdweller Laser Subdweller Machine Gun [Rating: 15] Favorites ----------- Power Light Ion Engine Engine Light Ion Engine Power Core Light Nuclear Core Propulsion Light Treads Treads Light Treads Leg Aluminum Leg Utility Large Storage Unit Device ECM Suite Storage Large Storage Unit Processor Signal Interpreter Weapon Light Assault Rifle Energy Gun Subdweller Laser Ballistic Gun Light Assault Rifle Ballistic Cannon Light Cannon Build | -11 -10 -10 -10 ------- Run | Yrd Mat Min Sub Slots Evolved . | . . . . Power . | . . . . Propulsion . | . . . . Utility . | . . . . Weapon . | . . . . Parts Attached 31 | 6 11 . 14 Power 8 | 1 2 . 5 Engine 7 | 1 1 . 5 Core 1 | . 1 . . Reactor . | . . . . Propulsion 9 | 2 4 . 3 Treads 7 | 2 4 . 1 Leg 2 | . . . 2 Wheel . | . . . . Hover . | . . . . Flight . | . . . . Utility 4 | 1 3 . . Device 1 | . 1 . . Storage 2 | 1 1 . . Processor 1 | . 1 . . Hackware . | . . . . Protection . | . . . . Artifact . | . . . . Weapon 10 | 2 2 . 6 Energy Gun 1 | . . . 1 Energy Cannon . | . . . . Ballistic Gun 7 | 2 2 . 3 Ballistic Cannon 2 | . . . 2 Launcher . | . . . . Special Weapon . | . . . . Impact Weapon . | . . . . Slashing Weapon . | . . . . Piercing Weapon . | . . . . Special Melee Weapon . | . . . . Unidentified Prototypes . | . . . . Parts Lost 10 | . 2 . 8 Power 4 | . 1 . 3 Propulsion 2 | . . . 2 Utility . | . . . . Weapon 4 | . 1 . 3 Highest Loss Streak 3 | . 1 . 3 To Critical Strikes . | . . . . Average Backups 13 | 1 13 15 13 Power 1 | . 1 2 1 Propulsion 5 | . 7 6 4 Utility 4 | . 2 5 5 Weapon 1 | . 2 2 1 Tool/Special . | . . . . Unused Backups 20 | . 4 1 15 Power 1 | . . . 1 Propulsion 6 | . 3 . 3 Utility 7 | . . 1 6 Weapon 5 | . 1 . 4 Tool/Special 1 | . . . 1 Average Slot Usage (%) 99 | . 98 100 99 Engine 12 | . 9 14 13 Core 1 | . 4 . . Treads 22 | . 28 28 18 Leg 5 | . . . 9 Device 3 | . 11 . . Storage 14 | . 14 14 14 Processor 10 | . 1 14 14 Ballistic Gun 21 | . 28 28 18 Ballistic Cannon 5 | . . . 8 Peak Build Rating 15 | 6 10 9 15 Average Rating 10 | 4 8 8 11 On Entrance 6 | . 6 9 9 Avg Prop Armor Cover (%) . | . . . . Naked Turns . | . . . . Heaviest Build 33 | 11 31 26 33 Greatest Support 40 | 40 40 40 40 Greatest Overweight (x) 1 | . . . 1 Average Overweight (x) . | . . . . Largest Inventory Capacity 15 | 8 15 15 15 Average Capacity 14 | 7 14 15 15 Most Carried 15 | 3 15 15 15 Average Carried 13 | 1 13 14 13 Final Capacity 15 | 8 15 15 15 Final Carried 15 | 3 15 15 15 Class Distribution -------------------- 100% | Mutant Dominant Class ---------------- Mutant | -10/Materials Mutant | -10/Mines Mutant | -10/Subcaves Resources | -11 -10 -10 -10 ----------- Run | Yrd Mat Min Sub Matter Collected 1252 | 209 599 . 444 Remotely . | . . . . Salvage Created 1351 | . 1041 . 310 Parts 76 | . 58 . 18 Haulers Intercepted 2 | . 2 . . Recyclers Shooed 3 | . 3 . . Parts Field Recycled . | . . . . Retrieved Matter . | . . . . Parts Self-Destructed 6 | . . . 6 Prevented . | . . . . Parts Restored . | . . . . Kills | -11 -10 -10 -10 ------- Run | Yrd Mat Min Sub Combat Hostiles Destroyed 26 | . 13 . 13 Guns 18 | . 13 . 5 Cannons 8 | . . . 8 Classes Destroyed 9 | . 7 . 2 Worker 1 | . 1 . . Hauler 2 | . 2 . . Recycler 6 | . 6 . . Operator 2 | . 2 . . Watcher 3 | . 3 . . Swarmer 9 | . 6 . 3 Grunt 7 | . 7 . . Artisan 1 | . . . 1 Subdweller 10 | . . . 10 Best Kill Streak 4 | . 4 . 3 Combat Bots Only 3 | . 3 . 3 Max Kills in Single Turn 1 | . 1 . 1 Gunslinging . | . . . . Exploded . | . . . . Melee . | . . . . Uniques/NPCs Destroyed . | . . . . Combat | -11 -10 -10 -10 -------- Run | Yrd Mat Min Sub Hostile Shots Fired 167 | . 87 . 80 Missed 42 | . 24 . 18 Hits 125 | . 63 . 62 Projectile 125 | . 63 . 62 Critical Strikes 2 | . 1 . 1 Damage Taken 1912 | . 695 . 1217 Core 266 | . 113 . 153 Absorbed by Shields . | . . . . Core Remaining (%) 100 | 100 . . . Volleys Fired 154 | . 98 . 56 Largest 2 | . 2 . 2 Hottest 90 | . 40 . 90 Shots Fired 297 | . 196 . 101 Gun 234 | . 196 . 38 Cannon 63 | . . . 63 Launcher . | . . . . Special . | . . . . Kinetic 291 | . 196 . 95 Thermal 6 | . . . 6 Explosive . | . . . . Electromagnetic . | . . . . Robot Hit Streak 19 | . 14 . 19 Robot Miss Streak 4 | . 4 . 2 Penetration Max . | . . . . Secondary Targets 2 | . 1 . 1 Max Gunslinging Chain 1 | . 1 . 1 Shots Hit Robots 199 | . 129 . 70 Core Hits 69 | . 46 . 23 Critical Kills . | . . . . Critical Parts Destroyed 2 | . 2 . . Critical Strikes 9 | . 2 . 7 Destroy 2 | . 2 . . Blast 7 | . . . 7 Melee Attacks . | . . . . Impact . | . . . . Slashing . | . . . . Piercing . | . . . . Sneak Attacks . | . . . . Combat Hostiles . | . . . . Follow-up Attacks . | . . . . Damage Inflicted 2688 | . 1450 . 1238 Guns 1742 | . 1450 . 292 Cannons 936 | . . . 936 Explosions . | . . . . Melee . | . . . . Ramming 10 | . . . 10 Kinetic 2657 | . 1450 . 1207 Thermal 21 | . . . 21 Explosive . | . . . . Electromagnetic . | . . . . Impact . | . . . . Slashing . | . . . . Piercing . | . . . . Highest Corruption . | . . . . Average Corruption . | . . . . Corruption Purged . | . . . . Corruption Blocked . | . . . . Overload Shots . | . . . . Overflow Damage . | . . . . Projectiles . | . . . . Explosions . | . . . . Melee . | . . . . Knockbacks 10 | . . . 10 Impact 1 | . . . 1 Kinetic 8 | . . . 8 Secondary 1 | . . . 1 Self-Inflicted Damage . | . . . . Shots . | . . . . Rammed . | . . . . Targets Rammed 1 | . . . 1 Kicked . | . . . . Crushed 1 | . . . 1 Highest Temperature 18 | . 18 . . Average Temperature 5 | . 5 . . Received Heat Transfer 414 | . 291 . 123 Siege Activations . | . . . . Martial Activations . | . . . . Shielding Activations . | . . . . Robots Disrupted . | . . . . Combat Hostiles . | . . . . Robots Corrupted . | . . . . Combat Hostiles . | . . . . Parts Fried . | . . . . Impact Corruptions . | . . . . Robots Melted . | . . . . Combat Hostiles . | . . . . Parts Melted . | . . . . Heat Transferred 25 | . . . 25 Parts Sabotaged . | . . . . Parts Stolen . | . . . . Parts Stripped . | . . . . Power Chain Reactions . | . . . . Alert | -11 -10 -10 -10 ------- Run | Yrd Mat Min Sub Maximum Alert Level . | . . . . Low Security (%) 100 | 100 100 100 . Level 1 . | . . . . Level 2 . | . . . . Level 3 . | . . . . Level 4 . | . . . . Level 5 . | . . . . High Security . | . . . . Max Security . | . . . . Peak Influence 123 | . 123 13 . Initial 13 | . . 13 . Average 24 | . 30 . . Influence Increases 517 | . 447 . 70 Destroy 0b10 Robot/C 320 | . 260 . 60 Destroy 0b10 Robot/NC 70 | . 70 . . Destroy Leader 90 | . 80 . 10 Successful Hack 5 | . 5 . . Disable Machine 15 | . 15 . . Destroy Structure 2 | . 2 . . Partial Spotted 15 | . 15 . . Influence Decreases 517 | . 413 34 70 Entered New Map 21 | . . 21 . Time Decay 466 | . 393 13 60 Lost Part 30 | . 20 . 10 Squads Dispatched 3 | . 2 1 . Investigation 1 | . . 1 . Extermination . | . . . . Reinforcement 2 | . 2 . . Assault . | . . . . Garrison . | . . . . Intercept . | . . . . Searches Triggered . | . . . . Construction Impeded . | . . . . Haulers Reinforced . | . . . . Active Scanning Responses . | . . . . Cargo Convoy Interrupts . | . . . . Stealth | -11 -10 -10 -10 --------- Run | Yrd Mat Min Sub Distress Signals 3 | . 3 . . Communications Jammed . | . . . . Distress Signals . | . . . . Times Spotted 48 | . 34 . 14 Peak Tracking Total 5 | . 5 . 3 Tactical Retreats 8 | . 8 . . ECM-based Alert Blocks 10 | . 10 . . Traps | -11 -10 -10 -10 ------- Run | Yrd Mat Min Sub Traps Triggered 1 | . . . 1 Indirectly . | . . . . Trap Hack Attempts . | . . . . Triggered . | . . . . Disarmed . | . . . . Reprogrammed . | . . . . Reused . | . . . . Traps Extracted . | . . . . Installed . | . . . . Triggered . | . . . . Machines | -11 -10 -10 -10 ---------- Run | Yrd Mat Min Sub Machines Disabled 1 | . 1 . . Max in Single Turn 1 | . 1 . . Machines Repaired . | . . . . Machines Dismantled . | . . . . Machines Sabotaged . | . . . . Overloaded Fab Kills . | . . . . Hacking | -11 -10 -10 -10 --------- Run | Yrd Mat Min Sub Machines Accessed 7 | . 5 2 . Terminals 4 | . 3 1 . Fabricators . | . . . . Repair Stations 1 | . 1 . . Recycling Units 1 | . 1 . . Scanalyzers . | . . . . Garrison Access . | . . . . Total Hacks 13 | . 10 3 . Successful 4 | . 3 1 . Failed 9 | . 7 2 . Catastrophic 1 | . . 1 . Database Lockouts . | . . . . Manual . | . . . . Terminals 10 | . 8 2 . Fabricators . | . . . . Repair Stations 1 | . 1 . . Recycling Units 1 | . 1 . . Scanalyzers . | . . . . Garrison Access . | . . . . Terminal Hacks 3 | . 2 1 . Open Door 1 | . . 1 . Locate Traps 1 | . 1 . . Zone Layout 1 | . 1 . . Fabricator Hacks . | . . . . Repair Station Hacks . | . . . . Recycling Unit Hacks 1 | . 1 . . Report Inventory 1 | . 1 . . Scanalyzer . | . . . . Garrison Access Hacks . | . . . . Unauthorized Hacks . | . . . . Terminals . | . . . . Fabricators . | . . . . Repair Stations . | . . . . Recycling Units . | . . . . Scanalyzers . | . . . . Garrison Access . | . . . . Data Cores Recovered . | . . . . Used . | . . . . Hacking Detections 5 | . 4 1 . Full Trace Events . | . . . . Feedback Events . | . . . . Feedback Blocked . | . . . . Robot Schematics Acquired . | . . . . Robots Built . | . . . . Authchips . | . . . . Time . | . . . . Total Robot Build Rating . | . . . . Part Schematics Acquired . | . . . . Parts Built . | . . . . Authchips . | . . . . Time . | . . . . Total Part Build Rating . | . . . . Part Studies Acquired . | . . . . Parts Repaired . | . . . . Time . | . . . . Parts Recycled . | . . . . Recycled Matter . | . . . . Retrieved Matter . | . . . . Retrieved Components . | . . . . Parts Scanalyzed . | . . . . Part Schematics Acquired . | . . . . Parts Damaged . | . . . . Bothacking | -11 -10 -10 -10 ------------ Run | Yrd Mat Min Sub Used RIF Installer . | . . . . Robots Hacked . | . . . . Non-combat . | . . . . Combat . | . . . . Robot Hacks Applied . | . . . . Relay Couplers Released . | . . . . Fabnet Peak Effective % . | . . . . Robots Rewired . | . . . . Allies Hacked . | . . . . Hacks Repelled . | . . . . Allies | -11 -10 -10 -10 -------- Run | Yrd Mat Min Sub Total Allies . | . . . . Largest Group . | . . . . Highest-Rated Group . | . . . . Highest-Rated Ally . | . . . . Total Orders . | . . . . Ally Attacks . | . . . . Total Damage . | . . . . Kills . | . . . . Allies Corrupted . | . . . . Allies Melted . | . . . . Intel | -11 -10 -10 -10 ------- Run | Yrd Mat Min Sub Active Infowar (turns) 1320 | . 1320 . . ECM 1320 | . 1320 . . Robot Analysis Total . | . . . . Derelict Logs Recovered 2 | . . 1 1 Drone Launches . | . . . . Drone Recoveries . | . . . . Exploration | -11 -10 -10 -10 ------------- Run | Yrd Mat Min Sub Turns Passed 5247 | 61 1581 373 3232 Spaces Moved 2796 | 33 763 233 1767 Core 2 | 2 . . . Treads 2256 | 31 763 233 1229 Legs 538 | . . . 538 Wheels . | . . . . Hover . | . . . . Flight . | . . . . Fastest Speed 50 | 50 160 160 160 Average Speed 165 | 153 160 160 169 Slowest Speed 240 | 160 160 160 240 Overloaded Moves . | . . . . Propulsion Burnouts . | . . . . Robots Hopped . | . . . . Potential Cave-ins . | . . . . Cave-ins Triggered . | . . . . Exploration Rate (%) 49 | 3 98 51 47 Regions Visited 3 Branch Regions 2 Pre-discovered Areas . | . . . . Known Exits Taken 2 | . 1 1 . Unknown Exits Taken 1 | 1 . . . Scrap Searched 2 | . . 1 1 Spaces Dug . | . . . . Terrain Destroyed . | . . . . Melee . | . . . . Projectile . | . . . . AOE . | . . . . Terrain Rammed . | . . . . Walls Destroyed . | . . . . Machines Disabled . | . . . . Actions | -11 -10 -10 -10 --------- Run | Yrd Mat Min Sub Total 3123 | 41 944 234 1904 Wait 82 | . 43 . 39 Move 2793 | 32 762 232 1767 Hop . | . . . . Pick Up 38 | 3 18 1 16 Fast Attach 9 | 6 3 . . Attach 10 | . 2 . 8 Detach 1 | . 1 . . Swap 14 | . 7 . 7 Drop 21 | . 10 1 10 Fire 154 | . 98 . 56 Melee . | . . . . Ram . | . . . . Kick . | . . . . Crush 1 | . . . 1 Escape Stasis . | . . . . Rewire . | . . . . Trap . | . . . . Miscellaneous . | . . . . Route ------- -11/Scrapyard -10/Materials (discovered 4 exits: *Mat x3 / *Min) -10/Mines -10/Subcaves History --------- Turn | Location | Event 36 | -11/Scrapyard | Discovered new exit (range 15) 62 | -11/Scrapyard | Entered Materials 311 | -10/Materials | Build established: Mutant 530 | -10/Materials | Discovered new exit (range 13) 1042 | -10/Materials | Discovered new exit (range 15) 1117 | -10/Materials | Discovered new exit (range 5) 1361 | -10/Materials | Discovered new exit (range 15) 1540 | -10/Materials | Identified exit to Materials 1641 | -10/Materials | Identified exit to Mines 1643 | -10/Materials | Entered Mines 1679 | -10/Mines | Learned Materials emergency access door positions 1736 | -10/Mines | Found a damaged Exp. Sensor Array with a note attached 1740 | -10/Mines | Found Prototype Device 1970 | -10/Mines | Discovered new exit (range 12) 1982 | -10/Mines | Met a Derelict shopkeep closing up shop 2015 | -10/Mines | Identified exit to Subcaves 2016 | -10/Mines | Entered Subcaves 2049 | -10/Subcaves | Core integrity fell below 50% 2200 | -10/Subcaves | Shifting Twisted Machinery released Spk. Treads 3595 | -10/Subcaves | Lost 3 parts (2p1w) 3742 | -10/Subcaves | Learned Materials garrison access intel 4093 | -10/Subcaves | Core integrity fell below 20% 4524 | -10/Subcaves | Shifting Twisted Machinery released Sub. Machine Gun 5248 | -10/Subcaves | Destroyed by DK-OLD(R) with Subdweller Laser Last Messages --------------- GN-HYG(u) tweaks Twisted Machinery. Subatomizers dissect the Disposable Heat Sink. Acquired 1 matter. Acquired 21 matter. Triggered Shrapnel Trap. An expanding cloud of shrapnel blasts out in all directions. Mak. Power Source destroyed. Use the buttons at the bottom right of the parts list, or press c/e/w/q, to visualize various stats related to parts and inventory items. Acquired 10 matter. Acquired Lgt. Assault Rifle. Acquired 10 matter. Subatomizers dissect the Disposable Heat Sink. Experienced players can activate Tactical HUD mode in the options menu, or press Ctrl-F7, for more detailed HUD info. Acquired Sub. Laser. Map ----- +----------------------------------------------------+ | ?????????????????????????????????????????????????? | | ?????????????????????????????????????????????????? | | ?????????????????????????????????????????????????? | | ?????????????????????????????????????????????????? | | ?????????????????????????????????????????????????? | | ?????????????????????????????????????????????????? | | ?????????????????????????????????????????????????? | | ?????????????????????????????????????????????????? | | ?????????????????????????????????????????????????? | | ?????????????????????????????????????????????????? | | ?????????????????????????????????????????????????? | | ?????????????????????????????????????????????????? | | ?????????????????????????????????????????????????? | | ?????????????????????????????????????????????????? | | ?????????????????????????????????????????????????? | | ?????????????????????????????????????????????????? | | ?????????????????????????????????????????????????? | | ??????????????????????????##?????????????????????? | | ??????????????????????????#"?????????????????????? | | ??????????????????????????? ##???????????????????? | | ??????????????????????????? ##??????????????????? | | ???????????????????????????# "###???##???????????? | | ??????????????????????????## ## #??? ##??????? ?? | | ??????????????????????#####" < #??# #?????? ?? | | ?????????????????????## ## R ### #????## #?? | | ?????????????????????# @ ##??# ##? | | ?????????????????????# ### ?? | | ??#######????????????# ??? | | ### # # #????????????# ???? | | #####???####### ##% ## #???????? | | """ ##### ########### ## ##???????? | | ### #????????### #????????? | | """## #######????# ####????????? | | "" ### ### ## ###### ##???????????? | | """ #### ######?# ## #????????????? | | "## ####??????# #????????????? | | ## ### #???????### ## #????????????? | | ?# ### "##?????# # # ## #????????????? | | ?# ## "###?????# #???????????? | | ?#" """"##????# ## ###### #????????? | | ##% """"" ????# ###########?????# #???????? | | " """""#????# ###???????????????? #???????? | | # ""#??# ???????????????????# #???????? | | ### "#??##?????????????????????# #???????? | | ### ##??????????????????????????# ???????? | | #? #???????????????????????????# ??????? | | #?? #????????????????????????????## ?????? | | ##????????????????????????????????????????? | | ##?????????????????????????????????????????? | | ##??????????????????????????????????????????? | +----------------------------------------------------+ Best States ------------- Heat Dissipation 25 Energy Generation 15 Energy Capacity 250 Matter Stores 300 Matter Capacity 300 Sight Range 16 Terrain Scan Density 10 ECM Strength 1 Evasion (%) 40 Recoil Reduction 2 Item Schematics ----------------- None Robot Schematics ------------------ None Fabricated ------------ Nothing Repaired ---------- Nothing Studied --------- None Alien Tech Used ----------------- None Achievements -------------- None Challenges ------------ None Game ------ Seed NavigationDisruptionCorpse Manual? 0 Play Time 00:45:08 Cumulative 21.7 hours Start 2026.09.09 @ 14:00:16 End 2026.09.09 @ 14:44:05 Sessions 1 Manual Loads 0 Difficulty Rogue Special Mode None Game No. 11 Rogue 11 Adventurer 0 Explorer 0 Win Type - Total 0 Types 0/0/0/0/0/0/0/0/0/0 Lore% 11 Gallery% 16 Achievement% 13 Wizard Run 0 Options --------- Layout 1 ASCII 0 Keyboard 0 Movement Numpad Keybinds 0 Fullscreen 1 Font 32/SmallcapsGlow Map View 50x40 Zoom Use 0% Tactical HUD 0 Map Filters NONE Filters NONE Steam 1 RUN: 4e01c854-e68f-4171-9b03-25ad38e95220